[Event "Cairns Cup 2024"]
[Site "Saint Louis"]
[Date "2024.06.17"]
[Round "5.5"]
[White "Zatonskih, Anna"]
[Black "Paehtz, Elisabeth"]
[Result "1/2-1/2"]
[ECO "E11"]
[WhiteElo "2327"]
[BlackElo "2457"]
[Annotator "TA"]
[PlyCount "71"]
[EventDate "2024.06.13"]
[EventType "tourn"]
[EventCountry "USA"]
[SourceTitle "playchess.com"]
[Source "ChessBase"]
[SourceQuality "1"]
[TimeControl "40/5400+30:1800+30"]

{[%evp 9,71,18,25,17,20,18,20,5,4,1,14,-20,0,0,0,-54,-27,-24,-27,-19,-22,-77,-28,-30,-20,-35,-37,-36,-22,-20,0,0,0,0,0,0,18,22,17,17,32,35,22,22,50,47,57,51,52,58,63,60,81,69,93,93,105,87,114,0,82,0,103,0]} 1. d4 {[%emt 0:00:00]} Nf6 {[%emt 0:00:00]} 2. Nf3 {[%emt 0:00:00]} e6 {[%emt 0:00:00][%cal Be7e6,Be6e5][%mdl 32]} 3. c4 {[%emt 0:00:00]} Bb4+ {[%emt 0:00:00]} 4. Bd2 {[%emt 0:00:00]} a5 {[%emt 0:00:00]} 5. e3 {[%emt 0:00:00]} d6 {[%emt 0:00:00]} 6. Bd3 {[%emt 0:00:00]} Nc6 {[%emt 0:00:00]} 7. O-O {[%emt 0:00:00]} e5 {[%emt 0:00:00] [#] Strongly threatening ...e4.} 8. Bxb4 {[%emt 0:04:01] The position is equal.} axb4 {[%emt 0:00:00]} 9. Nbd2 {[%emt 0:04:46]} O-O {[%emt 0:00:00]} 10. Qc2 {[%emt 0:37:58]} Qe7 {[%emt 0:07:20][%cal Ob4b3]} 11. d5 {[%emt 0:02:06]} Nb8 {[%emt 0:02:12]} 12. Bf5 {[%emt 0:02:09]} (12. e4 $11) 12... c6 {[%emt 0:06:17]} 13. dxc6 {[%emt 0:13:12]} Nxc6 {[%emt 0:04:30]} 14. Bxc8 {[%emt 0:05:21]} Rfxc8 {[%emt 0:00:44]} 15. b3 {[%emt 0:05:19]} (15. Ng5 $11) 15... g6 {[%emt 0:03:18]} ({Black should try} 15... d5 $17) 16. Ne4 $11 {[%emt 0:02:12]} Ne8 {[%emt 0:05:21][%cal Bf6e8,Be8c7,Bc7e6,Be6c5,Bc5d3][%mdl 32]} 17. Rfd1 {[%emt 0:00:56]} f5 {[%emt 0:02:29]} 18. Ng3 {[%emt 0:00:22]} Rd8 {[%emt 0:04:38]} 19. Qb2 {[%emt 0:01:10]} Nc7 {[%emt 0:02:20]} 20. a3 {[%emt 0:01:34]} e4 {[%emt 0:29:01]} 21. Nd4 {[%emt 0:00:39]} Nxd4 {[%emt 0:01:35]} 22. Rxd4 {[%emt 0:01:56]} Ne6 {[%emt 0:07:31] [#] ...bxa3 is the strong threat.} 23. Rdd1 {[%emt 0:00:28]} bxa3 {[%emt 0:00:32]} 24. Rxa3 {[%emt 0:00:05]} Rxa3 {[%emt 0:02:22]} 25. Qxa3 {[%emt 0:00:02]} Nc5 {[%emt 0:00:23]} 26. Ne2 {[%emt 0:01:37]} Nd3 {[%emt 0:00:58]} 27. Qa5 {[%emt 0:01:58]} Rc8 {[%emt 0:02:38]} 28. Qd5+ {[%emt 0:01:14]} Kg7 {[%emt 0:00:09]} 29. Nf4 {[%emt 0:00:53]} Nxf4 {[%emt 0:01:29]} 30. exf4 $14 {[%emt 0:00:01][%mdl 4096] Endgame. KQR-KQR} Rc6 {[%emt 0:01:29]} 31. h3 {[%emt 0:00:49] White is more active.} Kh6 {[%emt 0:00:59]} 32. Qd4 {[%emt 0:03:25]} Qg7 {[%emt 0:00:54]} 33. Qe3 {[%emt 0:03:32]} Qe7 {[%emt 0:00:16]} 34. Qd4 {[%emt 0:00:23]} Qg7 $1 {[%emt 0:00:04]} 35. Qe3 {[%emt 0:00:06]} Qe7 $1 {[%emt 0:00:04]} 36. Qd4 {[%emt 0:02:34] Weighted Error Value: White=0.16 (very precise) /Black=0.10 (very precise) .  Mistake:       	White=3     	Black=1      Inaccurate:     	White=1     	Black=3      OK:         	White=15    	Black=10     Strong:       	---       	Black=2} (36. f3 $16) 1/2-1/2